[Event "FIDE WSCC 65 2022"]
[Site "Assisi"]
[Date "2022.11.26"]
[Round "11.8"]
[White "Takyrbashev, Tilek"]
[Black "Hebert, Jean"]
[Result "0-1"]
[ECO "C05"]
[WhiteElo "1881"]
[BlackElo "2333"]
[Annotator "TA"]
[PlyCount "83"]
[EventDate "2022.11.14"]
[EventType "swiss"]
[EventCountry "ITA"]
[SourceTitle "playchess.com"]
[Source "ChessBase"]
[SourceQuality "1"]
[TimeControl "40/5400+30:1800+30"]

{[%evp 14,83,0,0,0,0,22,0,0,-14,0,-18,4,-31,16,22,17,28,15,0,0,-8,-8,-14,-10,-17,-12,-22,-18,-326,-91,-171,-48,-39,-25,-23,0,0,0,-34,-41,-41,-35,-38,-8,-12,-10,-21,-11,-17,-6,-17,0,-2,0,-8,-8,-12,0,-2,0,-7,-8,-10,0,-11,0,-11,-4,-26,-23,-42]} 1. e4 {[%emt 0:00:54]} e6 {[%emt 0:00:27]} 2. d4 {[%emt 0:00:27]} d5 {[%emt 0:00:05]} 3. Nd2 {[%emt 0:01:02]} Nf6 {[%emt 0:01:31]} 4. exd5 {[%emt 0:05:22]} exd5 {[%emt 0:00:39]} 5. Ngf3 {[%emt 0:02:48]} Bd6 {[%emt 0:01:54]} 6. Bd3 {[%emt 0:01:18]} O-O {[%emt 0:01:22]} 7. O-O {[%emt 0:00:14]} Nc6 {[%emt 0:00:54]} 8. c3 {[%emt 0:01:06]} Bg4 {[%emt 0:00:47] C05: French Tarrasch: 3...Nf6 4 e5 Nfd7, 5 f4 and 5 Bd3 sidelines.} 9. h3 {[%emt 0:22:25]} Bh5 {[%emt 0:02:09]} 10. Re1 {[%emt 0:02:50]} Re8 {[%emt 0:06:59] The position is equal.} 11. Rxe8+ {[%emt 0:04:47]} Qxe8 {[%emt 0:06:16]} 12. Qe1 {[%emt 0:02:12] [#]} Ne7 $146 {[%emt 0:22:11]} ({Predecessor:} 12... Qxe1+ 13. Nxe1 Re8 14. Kf1 Ne7 15. c4 c6 16. c5 Bc7 17. Ndf3 Bxf3 18. Nxf3 Ne4 {0-1 (54) Suprun,G-Kononov,V (2185) Moscow 1996}) 13. Qf1 {[%emt 0:15:21]} c5 {[%emt 0:06:16]} (13... Ng6 $15 {might be stronger.}) 14. dxc5 $11 {[%emt 0:02:33]} Bxc5 {[%emt 0:01:00]} 15. Nb3 {[%emt 0:00:33]} Bb6 {[%emt 0:02:32]} 16. Nbd4 {[%emt 0:04:35]} Ne4 {[%emt 0:02:33]} 17. Be2 {[%emt 0:12:07]} Nc6 {[%emt 0:03:46]} 18. Be3 {[%emt 0:02:46] [#]} Ng3 $1 {[%emt 0:02:02]} 19. fxg3 {[%emt 0:02:37]} Qxe3+ {[%emt 0:00:11]} 20. Kh2 {[%emt 0:01:21]} Re8 {[%emt 0:12:15][%cal Rc6d4]} 21. Nf5 {[%emt 0:06:17][%mdl 8192]} (21. Bb5 $11 {and White is okay.} Bxf3 22. Nxf3) 21... Qe6 $2 {[%emt 0:04:57]} (21... Qxe2 $19 22. Re1 Bxf3 23. Rxe2 Bxe2) 22. g4 {[%emt 0:00:57] [#]} (22. Bd3 $17 {is a better defense.}) 22... Bg6 {[%emt 0:10:22]} ({Don't do} 22... Qxe2 23. Re1 Bc7+ 24. Ng3 $16) (22... Bc7+ $1 $19 23. Kg1 Qxe2 24. Qxe2 Rxe2 25. gxh5 Rxb2) 23. Bd3 $15 {[%emt 0:01:08][%cal Be2d3,Bd3f5,Bf5c8,Bc8b7][%mdl 32]} Bc7+ {[%emt 0:01:20]} 24. Kh1 {[%emt 0:00:27]} Bxf5 {[%emt 0:00:40]} 25. Bxf5 {[%emt 0:01:03]} Qf6 {[%emt 0:01:10]} 26. Re1 {[%emt 0:01:51]} Rxe1 {[%emt 0:00:10]} 27. Qxe1 {[%emt 0:00:01][%cal Re1e8]} g6 {[%emt 0:00:20]} 28. Bc8 {[%emt 0:01:15]} b6 {[%emt 0:02:35]} (28... Na5 {is more complex.} 29. Qe8+ Kg7 30. g5 Qf4) 29. Bb7 {[%emt 0:00:44] Qe8+ is the strong threat.} (29. Qe8+ {feels hotter.} Kg7 30. Qd7 Bg3 31. g5) 29... Ne7 {[%emt 0:01:27]} 30. Qd2 {[%emt 0:00:59]} Qe6 {[%emt 0:01:00]} 31. Qe1 {[%emt 0:00:35]} Qd6 {[%emt 0:00:41]} 32. Qd2 {[%emt 0:00:19]} f6 {[%emt 0:01:06]} 33. a4 {[%emt 0:00:28]} Kg7 {[%emt 0:00:49]} 34. Qd4 {[%emt 0:00:24]} h6 {[%emt 0:00:39]} 35. Qd2 {[%emt 0:00:52]} g5 {[%emt 0:01:22]} 36. Qd4 {[%emt 0:01:08]} Qc5 {[%emt 0:00:58]} 37. Qxc5 {[%emt 0:00:22]} bxc5 {[%emt 0:00:04]} 38. Kg1 {[%emt 0:00:39]} Kf7 {[%emt 0:00:19]} 39. Kf2 {[%emt 0:00:21]} Ke6 {[%emt 0:00:26]} 40. Ke2 {[%emt 0:00:50]} Ng6 {[%emt 0:00:39]} 41. Ne1 {[%emt 0:32:14]} Nf4+ {[%emt 0:30:54]} 42. Kd2 {[%emt 0:00:40] Weighted Error Value: White=0.26 (precise) /Black=0.22 (precise)} 0-1

[Event "FIDE WSCC 65 2022"]
[Site "Assisi"]
[Date "2022.11.26"]
[Round "11.9"]
[White "Pomes Marcet, Joan"]
[Black "Kiefer, Gerhard"]
[Result "1-0"]
[ECO "E70"]
[WhiteElo "2197"]
[BlackElo "2260"]
[Annotator "TA"]
[PlyCount "84"]
[EventDate "2022.11.14"]
[EventType "swiss"]
[EventCountry "ITA"]
[SourceTitle "playchess.com"]
[Source "ChessBase"]
[SourceQuality "1"]
[TimeControl "40/5400+30:1800+30"]

{[%evp 20,84,22,0,-12,-40,-50,-33,-21,-23,-20,-87,0,0,0,0,0,-27,-29,-59,0,0,27,53,55,37,65,65,95,105,142,116,116,135,107,95,290,255,344,342,284,175,180,172,184,181,189,193,194,194,184,145,145,145,138,42,369,325,12841,12841,12843,3075,7420,6299,12842,12843,12842]} 1. d4 {[%emt 0:00:02]} Nf6 {[%emt 0:00:08]} 2. c4 {[%emt 0:00:06]} g6 {[%emt 0:00:09]} 3. Nc3 {[%emt 0:00:06]} Bg7 {[%emt 0:00:15]} 4. e4 {[%emt 0:00:20]} d6 {[%emt 0:00:08]} 5. Bd3 {[%emt 0:00:08]} O-O {[%emt 0:00:33]} 6. Nge2 {[%emt 0:00:15]} Nc6 {[%emt 0:01:40]} 7. O-O {[%emt 0:00:56]} e5 {[%emt 0:00:09]} 8. d5 {[%emt 0:01:00]} Nd4 {[%emt 0:00:08]} 9. Nxd4 {[%emt 0:03:18]} exd4 {[%emt 0:00:10]} 10. Ne2 {[%emt 0:00:07] The main line 10.Ne2 scores better than 10.Nb5.} Nd7 {[%emt 0:01:23]} 11. f3 {[%emt 0:08:12]} (11. b4 $5 {[%cal Rc1b2]}) 11... c5 {[%emt 0:07:26] E70: King's Indian: Miscellaneous lines with 4 e4, including 5 Nge2 and 5 Bd3 0-0 6 Nge2.} 12. Ng3 {[%emt 0:06:47]} (12. f4) 12... Ne5 {[%emt 0:08:37] [#]} 13. Be2 $146 {[%emt 0:01:25]} ({Predecessor:} 13. f4 Nxd3 14. Qxd3 Bd7 15. Bd2 a6 16. a4 b5 17. axb5 axb5 18. b3 Qb6 19. f5 {0-1 (32) Peglau,M (1840)-Leib,B (1900) Braunfels 2021}) 13... h5 {[%emt 0:19:38] Black is slightly better.} (13... Qh4 {seems wilder.} 14. Nh1 f5 15. Nf2 b6) 14. a4 {[%emt 0:21:44]} b6 {[%emt 0:04:01]} 15. Qb3 {[%emt 0:05:34]} (15. Ra2 $11) 15... Rb8 {[%emt 0:07:11]} (15... h4 $17 16. Nh1 h3) 16. f4 $11 {[%emt 0:10:15]} Ng4 {[%emt 0:01:27]} 17. Bxg4 {[%emt 0:07:08]} (17. h3 Ne3 18. Rf3 Qh4 $17) 17... Bxg4 {[%emt 0:00:27]} 18. h3 {[%emt 0:00:23] Prevents f5.} Bd7 {[%emt 0:00:25]} 19. f5 {[%emt 0:04:53]} Be5 {[%emt 0:00:11]} (19... h4 $15 20. Nh1 Qf6) 20. Bf4 {[%emt 0:02:00]} Bxf4 {[%emt 0:20:17]} 21. Rxf4 {[%emt 0:00:07]} h4 {[%emt 0:00:03]} 22. Nh1 {[%emt 0:07:07]} g5 {[%emt 0:00:15]} 23. Rg4 {[%emt 0:00:20]} f6 {[%emt 0:00:10]} 24. g3 {[%emt 0:00:14]} hxg3 {[%emt 0:01:26]} 25. h4 $1 {[%emt 0:00:07]} Kf7 {[%emt 0:01:06]} 26. Qxg3 {[%emt 0:01:28]} Qe7 {[%emt 0:00:46]} 27. Nf2 {[%emt 0:00:39][%cal Rh4g5]} (27. hxg5 {keeps more tension.} fxg5 28. Nf2 Rh8 29. Nh3) 27... Rg8 {[%emt 0:03:03]} (27... Rh8 $16) 28. hxg5 $1 $18 {[%emt 0:00:29]} Rxg5 {[%emt 0:00:21]} 29. Rxg5 {[%emt 0:01:03]} fxg5 {[%emt 0:00:02]} 30. Kg2 {[%emt 0:01:27] Threatens to win with Rh1.} Rh8 {[%emt 0:00:39] [#]} 31. b3 $1 {[%emt 0:00:24]} a6 {[%emt 0:01:43]} 32. Rh1 {[%emt 0:01:57]} Rxh1 {[%emt 0:00:05]} 33. Kxh1 {[%emt 0:00:05][%mdl 4096] Endgame KQB-KQN} b5 {[%emt 0:01:04]} 34. axb5 {[%emt 0:00:07]} axb5 {[%emt 0:00:05]} 35. Kg2 {[%emt 0:00:21]} bxc4 {[%emt 0:00:10]} 36. bxc4 {[%emt 0:00:05]} Ba4 {[%emt 0:00:55] [#]} 37. Qh3 {[%emt 0:04:17]} ({Better is} 37. Qf3 $1 $16 {[%cal Rf3h5]}) 37... Ke8 $2 {[%emt 0:00:43][%mdl 8192]} ({Black should try} 37... Kg7 $1 $14) 38. Qh8+ {[%emt 0:01:21]} Kd7 $2 {[%emt 0:00:21]} (38... Qf8 39. Qh5+ Ke7 40. Qh7+ (40. Qxg5+ Qf6 $16) 40... Qf7 41. f6+ Kxf6 42. e5+ dxe5 43. Ne4+ Ke7 44. d6+ (44. Nxg5 $2 {perishes.} Qxh7 45. Nxh7 d3 $19) (44. Qh6 Qf5 $11) 44... Kf8 45. Qh8+ (45. Nxg5 $2 Bc6+ 46. Kg1 Qxh7 $19) 45... Qg8 46. Qxe5 Qg7 47. Qxc5 Bd7) 39. f6 {[%emt 0:01:50] White is clearly winning.} Qf7 {[%emt 0:03:08]} 40. Ng4 {[%emt 0:02:38]} (40. e5 $142 dxe5 41. Nd3) 40... Bc2 {[%emt 0:04:18]} 41. e5 {[%emt 0:31:12] Threatening mate with e6+.} Bf5 {[%emt 0:37:56]} 42. Qg7 {[%emt 0:00:00]} Ke8 {[%emt 0:00:00] Weighted Error Value: White=0.20 (precise) /Black=0.38} 1-0

[Event "FIDE WSCC 65 2022"]
[Site "Assisi"]
[Date "2022.11.26"]
[Round "11.10"]
[White "Petran, Peter"]
[Black "Sideifzade, Fikret"]
[Result "0-1"]
[ECO "A07"]
[WhiteElo "2213"]
[BlackElo "2391"]
[Annotator "TA"]
[PlyCount "82"]
[EventDate "2022.11.14"]
[EventType "swiss"]
[EventCountry "ITA"]
[SourceTitle "playchess.com"]
[Source "ChessBase"]
[SourceQuality "1"]
[TimeControl "40/5400+30:1800+30"]

{[%evp 9,82,9,10,8,4,3,11,-12,-14,-14,-14,-35,-16,-15,-23,-28,-23,-45,-52,-33,-39,-59,-33,-49,-53,-55,-30,-31,-31,-18,-31,-28,-19,-32,-14,-12,-13,-16,-1,-6,0,0,0,0,0,-2,-8,-175,-168,-181,-172,-216,-219,-227,-227,-211,-210,-614,-598,-766,-769,-750,-746,-725,-712,-673,-620,-616,-583,-578,-567,-549,-533,-665,-568]} 1. g3 {[%emt 0:01:58]} Nf6 {[%emt 0:01:20]} 2. Bg2 {[%emt 0:00:06]} d5 {[%emt 0:03:05]} 3. d3 {[%emt 0:00:07]} c6 {[%emt 0:00:50]} 4. Nf3 {[%emt 0:00:07]} Bf5 {[%emt 0:00:31]} 5. b3 {[%emt 0:00:26]} e6 {[%emt 0:00:12]} 6. Bb2 {[%emt 0:00:08] A07: Réti Opening: New York and Capablanca Systems.} Be7 {[%emt 0:00:23]} 7. Nbd2 {[%emt 0:00:09]} O-O {[%emt 0:00:08]} 8. Nh4 {[%emt 0:01:01] The position is equal.} Bg4 {[%emt 0:01:12][%cal Bf5g4,Bg4h5,Bh5g6][%mdl 32]} 9. h3 {[%emt 0:00:15]} Bh5 {[%emt 0:00:06]} 10. g4 {[%emt 0:00:13]} Nfd7 {[%emt 0:03:25]} 11. Nhf3 {[%emt 0:02:40]} Bg6 {[%emt 0:00:30]} 12. e4 {[%emt 0:00:26]} a5 {[%emt 0:07:24] [#]} 13. a4 $146 {[%emt 0:04:18]} ({Predecessor:} 13. a3 c5 14. O-O Nc6 15. Qe2 a4 16. Rfe1 Bf6 17. Bxf6 Qxf6 18. Rab1 Qc3 19. exd5 exd5 {1-0 (37) Bayer,B (2442)-Milanovic,D (2502) Austria 2014}) 13... Na6 {[%emt 0:02:26]} 14. O-O {[%emt 0:01:05]} Nb4 {[%emt 0:04:44]} 15. Re1 {[%emt 0:00:11]} b5 {[%emt 0:09:16]} 16. Ne5 {[%emt 0:15:56]} Nxe5 {[%emt 0:04:17]} 17. Bxe5 {[%emt 0:00:11]} Bf6 {[%emt 0:01:20]} (17... Qb6 {feels hotter.} 18. Nf3 bxa4 19. Rxa4 Rfd8) 18. Bxf6 {[%emt 0:07:05]} Qxf6 {[%emt 0:00:34]} 19. e5 {[%emt 0:03:37]} Qe7 {[%emt 0:02:24]} 20. Nf3 {[%emt 0:01:21]} Rfc8 {[%emt 0:05:58]} 21. Re2 {[%emt 0:00:38]} bxa4 {[%emt 0:01:57]} 22. Rxa4 {[%emt 0:00:29]} c5 {[%emt 0:00:04]} 23. Ne1 {[%emt 0:02:45]} h5 {[%emt 0:09:51]} 24. f4 {[%emt 0:05:54][%cal Bf2f4,Bf4f5][%mdl 32]} hxg4 {[%emt 0:02:31]} 25. hxg4 {[%emt 0:00:07]} Ra7 {[%emt 0:08:03]} 26. Rf2 {[%emt 0:00:41]} c4 {[%emt 0:04:48]} 27. f5 {[%emt 0:05:32]} Bh7 {[%emt 0:00:03]} 28. d4 $2 {[%emt 0:09:02] [#] Loses the game.} (28. bxc4 $11 {and White has nothing to worry.} dxc4 29. d4) 28... cxb3 $19 {[%emt 0:00:42]} 29. cxb3 {[%emt 0:00:08]} Qg5 {[%emt 0:00:58][%cal Re6f5]} 30. Qf3 {[%emt 0:05:58]} Rc1 {[%emt 0:05:03]} 31. Rf1 {[%emt 0:04:23]} exf5 {[%emt 0:05:51]} 32. gxf5 {[%emt 0:09:00]} Qd2 {[%emt 0:02:40][%csl LRd4,LRe1]} 33. Rxb4 $2 {[%emt 0:09:18]} (33. Qf2 Qxf2+ 34. Kxf2) 33... axb4 {[%emt 0:02:14] Black is clearly winning.} 34. Qxd5 {[%emt 0:00:07][%cal Rd5d8]} Qe3+ {[%emt 0:02:53]} (34... Rxe1 $2 35. Qd8#) 35. Kh2 {[%emt 0:00:59]} Qh6+ {[%emt 0:00:35]} (35... Rxe1 $2 36. Qd8#) 36. Kg1 {[%emt 0:00:09] [#]} Bxf5 $1 {[%emt 0:00:23][%cal Oa7a1][%mdl 512]} 37. Qf3 {[%emt 0:05:05]} g6 {[%emt 0:01:42] White must now prevent ...Raa1.} 38. Qf2 {[%emt 0:01:44]} Rd1 {[%emt 0:05:36] Against e6. aiming for ...Raa1.} 39. d5 {[%emt 0:05:18]} Re7 {[%emt 0:00:06]} 40. Qg3 {[%emt 0:00:15]} Qd2 {[%emt 0:01:49]} 41. Kh2 Qc3 {[%emt 0:30:30] Weighted Error Value: White=0.45/Black=0.08 (flawless)} 0-1

[Event "FIDE WSCC 65 2022"]
[Site "Assisi"]
[Date "2022.11.26"]
[Round "11.11"]
[White "Binham, Timothy F."]
[Black "Chapman, Terry P D"]
[Result "*"]
[ECO "E94"]
[WhiteElo "2284"]
[BlackElo "2216"]
[Annotator "TA"]
[PlyCount "86"]
[EventDate "2022.11.14"]
[EventType "swiss"]
[EventCountry "ITA"]
[SourceTitle "playchess.com"]
[Source "ChessBase"]
[SourceQuality "1"]
[TimeControl "40/5400+30:1800+30"]

{[%evp 18,86,91,64,92,64,101,83,94,70,79,63,76,68,99,82,115,92,128,116,196,195,210,191,200,204,205,156,160,146,151,158,237,227,229,228,244,228,243,232,232,236,235,236,282,267,291,285,290,273,323,334,304,312,332,315,331,270,289,248,249,249,248,249,189,112,121,97,241,218,183]} 1. e4 {[%emt 0:00:08]} c6 {[%emt 0:00:03]} 2. c4 {[%emt 0:00:46]} e5 {[%emt 0:00:12]} 3. Nf3 {[%emt 0:00:43]} d6 {[%emt 0:00:05]} 4. d4 {[%emt 0:00:28]} Nd7 {[%emt 0:00:07]} 5. Nc3 {[%emt 0:00:14]} Ngf6 {[%emt 0:00:17]} 6. Be2 {[%emt 0:01:06]} g6 {[%emt 0:00:09]} 7. O-O {[%emt 0:10:18]} Bg7 {[%emt 0:00:19]} 8. Be3 {[%emt 1:20:47]} O-O {[%emt 0:02:24]} 9. d5 {[%emt 0:07:45]} c5 {[%emt 0:00:19]} 10. Ne1 {[%emt 0:00:30]} Qe7 {[%emt 0:03:02] E94: King's Indian: Classical: 6 Be2 e5 7 0-0: Various Black 7th moves.} 11. a3 {[%emt 0:02:48] [#]} Kh8 $146 {[%emt 0:00:57]} ({Predecessor:} 11... Ne8 12. b4 f5 13. f3 Ndf6 14. bxc5 dxc5 15. d6 Nxd6 16. Bxc5 Rd8 17. Nb5 Nfe8 18. Qb3 {0-1 (27) Soural,J (2178)-Sejkora,V (2215) Czech Republic 2013}) 12. b4 {[%emt 1:08:11]} b6 {[%emt 0:00:04] White is better.} 13. Nd3 {[%emt 0:02:43]} Ng8 {[%emt 0:02:32]} 14. Qd2 {[%emt 0:02:13]} f5 {[%emt 0:02:59] White must now prevent ...f4.} 15. f3 {[%emt 0:02:18]} f4 {[%emt 0:03:57]} 16. Bf2 {[%emt 0:01:17]} h5 {[%emt 0:05:10]} 17. Rab1 {[%emt 0:01:28]} Rf7 {[%emt 1:16:24]} 18. Nb5 {[%emt 0:08:16]} Ndf6 {[%emt 0:10:29] [#]} (18... Nb8 $16 {was worth a try.} 19. Bd1 Na6) 19. Nxd6 $1 {[%emt 0:03:49][%mdl 512]} Qxd6 {[%emt 0:00:16]} 20. bxc5 {[%emt 0:00:02]} bxc5 {[%emt 0:00:41]} 21. Bxc5 {[%emt 0:00:04]} Qc7 {[%emt 0:00:34]} 22. Qb4 {[%emt 0:08:16]} Ne8 {[%emt 0:06:44]} 23. Bf2 {[%emt 0:02:37]} Nh6 {[%emt 0:11:13]} 24. c5 {[%emt 0:02:24] White is much more active. The black rooks are badly placed.} Ba6 {[%emt 0:05:01] [#]} (24... Qd8 $16 25. c6 g5) 25. Nxf4 $1 $18 {[%emt 0:03:03][%cal Bd3f4,Bf4e2,Be2c3,Bc3b5][%mdl 608]} Bxe2 {[%emt 0:07:13]} 26. Nxe2 {[%emt 0:00:03]} Rd7 {[%emt 0:00:55]} 27. Rfc1 {[%emt 0:02:20][%mdl 1024] White has strong compensation.} Nf7 {[%emt 0:00:11]} 28. Nc3 {[%emt 0:06:56] c6 is the strong threat.} Bf8 {[%emt 0:01:58]} 29. Nb5 {[%emt 0:02:09]} Qc8 {[%emt 0:07:00]} 30. Qc4 {[%emt 0:02:46]} a6 {[%emt 0:02:39]} 31. Nc3 {[%emt 0:00:21] Strongly threatening Na4.} Rb7 {[%emt 0:07:20]} 32. Na4 {[%emt 0:04:54] And now Nb6 would win.} Rxb1 {[%emt 0:01:39]} 33. Rxb1 {[%emt 0:00:02] aiming for Nb6.} Rb8 {[%emt 0:02:22]} 34. Rxb8 {[%emt 0:20:04]} Qxb8 {[%emt 0:00:00]} 35. Nb6 {[%emt 0:00:24]} (35. Qxa6 Qb1+ 36. Qf1 Qc2 $15) 35... Qc7 {[%emt 0:08:50]} 36. a4 {[%emt 0:03:12]} (36. Qxa6 Bxc5 37. Nc4 Ned6 38. Nxd6 Bxd6 $15) 36... Kg7 {[%emt 0:00:59]} 37. Kf1 {[%emt 0:01:51]} (37. Qxa6 Bxc5 38. Nc4 Bxf2+ 39. Kxf2 Qc5+ 40. Ne3 Nf6 $15) 37... Be7 {[%emt 0:01:47]} 38. Ke2 {[%emt 0:01:18]} ({Inferior is} 38. Qxa6 Bxc5 39. Na8 Qb8 $11) 38... g5 {[%emt 0:04:28]} 39. Be3 {[%emt 0:03:52]} ({And not} 39. Qxa6 Bxc5 40. Na8 Qe7 $11) 39... g4 {[%emt 0:02:23]} 40. d6 {[%emt 0:11:59]} ({Weaker is} 40. Qxa6 Bxc5 41. Nc4 Bxe3 42. Nxe3 Ned6 $11) 40... gxf3+ {[%emt 0:00:24]} 41. Kxf3 {[%emt 0:33:11] Really sharp!} (41. gxf3 $18 Nexd6 42. cxd6 Qxc4+ 43. Nxc4 Bxd6 44. Kd3) 41... Bxd6 $16 {[%emt 0:02:03]} 42. cxd6 {[%emt 0:00:00]} Qxc4 {[%emt 0:01:39]} (42... Qxd6 $16 {was called for.} 43. Qxa6 Nf6) 43. Nxc4 $18 {[%emt 0:00:00] Threatens to win with d7.} Nexd6 {[%emt 0:00:07] Weighted Error Value: White=0.15 (very precise) /Black=0.22 (precise)} *

[Event "FIDE WSCC 65 2022"]
[Site "Assisi"]
[Date "2022.11.26"]
[Round "11.12"]
[White "Roos, Jean-Luc"]
[Black "Gaprindashvili, Nona"]
[Result "1/2-1/2"]
[ECO "B15"]
[WhiteElo "2195"]
[BlackElo "2268"]
[Annotator "TA"]
[PlyCount "24"]
[EventDate "2022.11.14"]
[EventType "swiss"]
[EventCountry "ITA"]
[SourceTitle "playchess.com"]
[Source "ChessBase"]
[SourceQuality "1"]
[TimeControl "40/5400+30:1800+30"]

{[%evp 9,24,55,73,61,107,113,89,66,85,25,44,-37,0,0,0,0,93]} 1. d4 {[%emt 0:00:03]} g6 {[%emt 0:00:10]} 2. e4 {[%emt 0:00:25]} c6 {[%emt 0:00:34]} 3. Nc3 {[%emt 0:01:40]} d5 {[%emt 0:00:13]} 4. h3 {[%emt 0:00:27]} Nh6 {[%emt 0:01:00]} 5. Nf3 {[%emt 0:01:26]} f6 {[%emt 0:00:24]} 6. Bf4 {[%emt 0:04:26] B15: Caro-Kann: 3 Nc3: 3...g6 and 3...dxe4 4 Nxe4 Nf6 5 Nxf6+ exf6.} a6 {[%emt 0:00:11]} (6... Bg7 $14 {might be stronger.}) 7. Qd2 $16 {[%emt 0:01:26] White has more active pieces.} Nf7 {[%emt 0:00:02]} 8. Bd3 {[%emt 0:09:28] White is better.} Bg7 {[%emt 0:15:24]} 9. O-O {[%emt 0:08:52]} (9. O-O-O $16) 9... O-O {[%emt 0:00:33]} 10. e5 {[%emt 0:08:54]} (10. Rad1 $14) 10... fxe5 {[%emt 0:02:21]} (10... c5 $5 {[%cal Rc5d4]} 11. e6 (11. dxc5 $2 {too greedy.} fxe5 12. Bg3 e4 $19) (11. exf6 Bxf6 12. Be3 Nc6 $15) 11... Bxe6 $11) 11. Nxe5 {[%emt 0:06:27]} Nd7 {[%emt 1:15:08]} 12. Nf3 {[%emt 0:52:56] [#]} Nb8 $146 {[%emt 0:00:30] Weighted Error Value: White=0.30/Black=0.16 (very precise)} (12... e5 $11 {remains equal.} 13. Nxe5 Ndxe5 14. dxe5 Bxe5) ({Predecessor:} 12... e5 13. dxe5 Ndxe5 14. Nxe5 Nxe5 15. Rae1 Nf7 16. Na4 b5 17. Nc5 Bxb2 18. c3 Qf6 19. Qxb2 Qxf4 {½-½ (42) Sosna,J (2395)-Vokac,M (2466) Stare Mesto 2009}) 1/2-1/2

[Event "FIDE WSCC 65 2022"]
[Site "Assisi"]
[Date "2022.11.26"]
[Round "11.13"]
[White "Lanc, Alois"]
[Black "Hutchinson, Paul A"]
[Result "1-0"]
[ECO "B01"]
[WhiteElo "2268"]
[BlackElo "2148"]
[Annotator "TA"]
[PlyCount "45"]
[EventDate "2022.11.14"]
[EventType "swiss"]
[EventCountry "ITA"]
[SourceTitle "playchess.com"]
[Source "ChessBase"]
[SourceQuality "1"]
[TimeControl "40/5400+30:1800+30"]

{[%evp 17,45,62,64,66,66,61,65,62,57,54,52,30,45,7,7,7,7,4,22,25,157,167,165,155,649,641,883,866,827,807]} 1. e4 {[%emt 0:01:36]} d5 {[%emt 0:00:04]} 2. exd5 {[%emt 0:00:18]} Qxd5 {[%emt 0:00:05]} 3. Nc3 {[%emt 0:00:06]} Qa5 {[%emt 0:00:04]} 4. d4 {[%emt 0:00:34]} Nf6 {[%emt 0:00:05]} 5. Nf3 {[%emt 0:00:30]} Bg4 {[%emt 0:00:08]} 6. h3 {[%emt 0:00:27]} Bxf3 {[%emt 0:00:04]} 7. Qxf3 {[%emt 0:00:14]} c6 {[%emt 0:00:06]} 8. Bd2 $1 {[%emt 0:04:52] The main line 8.Bd2 scores better than 8.Bc4.} Nbd7 {[%emt 0:00:44]} 9. O-O-O {[%emt 0:05:45]} e6 {[%emt 0:00:33]} 10. Kb1 {[%emt 0:02:40] B01: Scandinavian Defence.} Bb4 {[%emt 0:00:53]} 11. a3 {[%emt 0:03:15]} Bxc3 {[%emt 0:02:34]} 12. Bxc3 {[%emt 0:00:49] White is slightly better.} Qd5 {[%emt 0:00:07] [#]} 13. Qd3 $146 {[%emt 0:08:09]} (13. Qxd5 {simplifies} Nxd5 14. Bd2 b5 15. Be2) ({Predecessor:} 13. Qxd5 Nxd5 14. Bd2 b5 15. c4 bxc4 16. Bxc4 N7b6 17. Bb3 O-O-O 18. a4 Kb7 19. Rc1 {½-½ (71) Ladron de Guevara Pinto,P (2429)-Munoz Pantoja,M (2482) Brena Baja 2019}) 13... a5 {[%emt 0:02:05]} 14. Be2 {[%emt 0:07:45][%cal Bf1e2,Be2f3,Bf3d5][%mdl 32]} b5 {[%emt 0:10:36]} 15. Bf3 {[%emt 0:19:57]} Qd6 {[%emt 0:06:22]} 16. d5 $36 {[%emt 0:00:08][%mdl 2048] White has some pressure.} cxd5 {[%emt 0:01:32]} 17. Bxf6 {[%emt 0:04:37]} gxf6 {[%emt 0:00:10]} 18. Qxb5 {[%emt 0:00:08][%cal Rf3d5] Strongly threatening Bxd5!} O-O {[%emt 0:00:12] [#]} (18... Qb6 $11 {remains equal.} 19. Qxb6 Nxb6) 19. Bxd5 $1 $16 {[%emt 0:04:23][%mdl 512] White is more active.} Rab8 {[%emt 0:00:25]} (19... exd5 $2 20. Rxd5 Qb6 21. Qxd7) 20. Bb7 {[%emt 0:03:37]} ({Worse is} 20. Qxa5 exd5 21. Rxd5 Qc6 $17) 20... Qe5 {[%emt 0:03:21]} (20... Qb6 $16 21. Qxd7 Rxb7) 21. Qxd7 $18 {[%emt 0:05:52] White is clearly winning.} Rxb7 {[%emt 0:00:10]} 22. Qxb7 {[%emt 0:00:06]} Rb8 {[%emt 0:00:04] [#]} 23. f4 $1 {[%emt 0:02:10] Weighted Error Value: White=0.06 (flawless) /Black=0.61} 1-0